bitfinex/quotes_ETHUSD_20250822
["timestamp","ask_amount","ask_price","bid_price","bid_amount"]
[1755873734804,0.66,4618.9,4617.3,0.001]
[1755873735043,0.0246944,4619.3,4617.3,0.001]
[1755873735044,10.5766944,4618.8,4617.3,0.001]
[1755873735237,0.7546009,4618.7,4617.3,0.001]
[1755873735403,1.6886944,4618.6,4617.3,0.001]
[1755873735604,2.82524781,4618.5,4617.3,0.001]
[1755873735803,0.0246944,4618.4,4617.3,0.001]
[1755873736027,0.66,4618.3,4617.3,0.001]
[1755873736210,0.66,4617.7,4617.3,0.001]
[1755873736417,0.66,4617.5,4617.3,0.001]
[1755873736623,1.6886944,4617.4,4616.8,0.01356033]
[1755873736938,2.1658178,4617.2,4616.8,0.01356033]
[1755873737148,0.0246944,4617.1,4616.8,0.01356033]
[1755873737439,0.54050944,4617.0,4616.8,0.01356033]
[1755873737807,5.345,4616.9,4616.8,0.01356033]
[1755873738139,5.7742,4616.9,4616.8,0.01356033]
[1755873738435,5.345,4616.9,4616.8,0.01356033]
[1755873738858,5.453,4616.9,4616.8,0.01356033]
[1755873739006,5.8822,4616.9,4616.8,0.01356033]
[1755873739205,6.47042,4616.9,4616.8,0.01356033]
[1755873739403,7.13042,4616.9,4616.8,0.01356033]
[1755873739804,6.47042,4616.9,4616.8,0.01356033]
[1755873740418,7.13042,4616.9,4616.8,0.01356033]
[1755873740842,1.12542,4616.9,4616.8,0.01356033]
[1755873741010,5.4746944,4616.9,4616.8,0.01356033]
[1755873741215,5.8782,4616.9,4616.8,0.01356033]
[1755873741515,5.449,4616.9,4616.8,0.01356033]
[1755873741744,5.8782,4616.9,4616.8,0.01356033]
[1755873741948,2.82633088,4616.1,4616.0,0.001]
[1755873742154,0.66,4615.9,4613.2,0.1009]
[1755873742351,0.108,4614.9,4613.2,0.1009]
[1755873742524,7.112,4614.9,4613.2,0.1009]
[1755873742847,7.8232,4614.9,4613.2,0.1009]
[1755873743049,8.2524,4614.9,4612.8,0.021]
[1755873743251,7.112,4614.9,4614.4,0.16050006]
[1755873744136,7.111,4614.9,4614.4,0.16050006]
[1755873744338,1.773,4614.9,4614.4,0.16050006]
[1755873744516,7.11,4614.9,4614.4,0.16050006]
[1755873744718,1.666,4614.9,4614.8,0.0634]
[1755873744949,5.6352,4617.4,4614.9,9.84532]
[1755873745149,0.108,4616.3,4615.2,0.66]
[1755873745324,5.335,4616.2,4615.8,0.66]
[1755873745525,1.666,4616.1,4616.0,0.66]
[1755873745727,5.206,4618.9,4616.1,3.0268]
[1755873745920,0.11329604,4621.2,4616.1,3.0268]
[1755873745921,1.666,4618.8,4616.4,0.66]
[1755873746116,5.206,4620.5,4616.3,5.16621721]
[1755873746117,5.333,4618.7,4617.5,3.66]
[1755873746321,7.0236944,4618.6,4617.7,0.66]
[1755873746555,7.0236944,4618.6,4617.6,0.0233]
[1755873746556,0.002,4618.0,4617.6,0.0233]
[1755873746739,6.998,4617.9,4616.5,1.8625468]
[1755873747052,0.0246944,4617.8,4615.0,3.66]
[1755873747266,0.02,4616.8,4616.0,0.66]
[1755873747565,6.997,4616.7,4616.1,8.1556233]
[1755873747861,0.0246944,4616.6,4616.4,3.0]
[1755873748069,6.997,4616.7,4616.2,0.66]
[1755873748232,6.997,4616.7,4615.8,3.0]
[1755873748560,1.666,4616.6,4616.0,2.16637781]
[1755873748725,1.666,4616.6,4616.5,0.66]
[1755873748923,5.2775,4617.1,4617.0,2.82586846]
[1755873749160,1.666,4617.6,4617.5,0.66]
[1755873749331,1.666,4617.6,4617.5,8.16085674]
[1755873749332,1.6108,4617.6,4617.5,8.16085674]
[1755873749531,1.6108,4617.6,4617.5,4.91143723]
[1755873749829,1.6108,4617.6,4617.5,1.91143723]
[1755873750133,6.9358,4617.6,4617.5,0.0022]
[1755873750341,6.9358,4617.6,4616.0,0.16054204]
[1755873750526,0.0246944,4617.5,4615.3,3.0]
[1755873750825,6.9358,4617.6,4615.5,3.0]
[1755873751025,6.9358,4617.6,4614.8,2.18792218]
[1755873751026,0.0246944,4617.5,4615.7,2.16651862]
[1755873751263,5.206,4617.4,4615.6,0.014]
[1755873751449,0.0246944,4617.3,4615.6,0.014]
[1755873751647,0.0246944,4617.3,4614.8,0.021]
[1755873751927,0.4538944,4617.3,4615.5,0.001]
[1755873752131,5.321,4617.2,4615.5,0.001]
[1755873752334,0.0246944,4617.1,4615.5,0.001]
[1755873752528,0.02,4616.8,4615.8,0.02]
[1755873752743,0.66,4616.6,4615.8,0.02]
[1755873752955,0.66,4616.6,4615.5,0.001]
[1755873752956,0.66,4616.2,4615.5,0.001]
[1755873753156,5.3436944,4616.1,4615.5,0.001]
[1755873753366,0.76696944,4616.0,4614.8,0.021]
[1755873753537,0.66,4615.7,4614.8,0.021]
[1755873753861,1.19616944,4616.0,4614.8,0.18662848]
[1755873754072,0.4292,4616.0,4614.8,0.18662848]
[1755873754429,5.3406944,4615.9,4614.8,0.18662848]
[1755873754656,5.316,4615.9,4614.8,0.18662848]
[1755873754851,0.0246944,4615.8,4614.8,0.18662848]
[1755873755062,5.316,4615.9,4614.8,0.18662848]
[1755873755460,0.0246944,4615.8,4614.8,0.18662848]
[1755873755776,5.314,4615.7,4614.8,0.18662848]
[1755873755932,0.0246944,4615.6,4614.8,0.18662848]
[1755873756135,0.108,4614.9,4614.8,0.18662848]
[1755873756362,6.981,4614.9,4614.8,0.18662848]
[1755873757174,12.294,4614.9,4614.8,0.18662848]
[1755873757381,12.186,4614.9,4614.8,0.18662848]
[1755873757670,12.184,4614.9,4614.8,0.18662848]
[1755873757880,6.873,4614.9,4614.8,0.18662848]
[1755873758178,6.873,4614.9,4614.8,0.84662848]
[1755873758478,6.873,4614.9,4614.8,0.20632848]
[1755873758479,6.975,4614.9,4614.8,0.20632848]
[1755873758633,6.975,4614.9,4614.8,0.86632848]
[1755873759067,6.975,4614.9,4614.8,0.18662848]
[1755873759575,8.145,4614.9,4614.8,0.18662848]
[1755873760569,1.666,4614.9,4614.8,0.021]
[1755873760798,6.971,4614.9,4614.8,0.021]
[1755873760956,10.4435,4614.9,4614.8,0.021]
[1755873761160,0.66,4614.7,4610.8,1.0224]
[1755873761385,3.0,4614.5,4612.6,0.16248385]
[1755873761588,12.89325239,4614.7,4612.6,0.16248385]
[1755873761589,3.6838944,4614.4,4612.6,0.16248385]
[1755873761792,0.66,4614.1,4612.6,0.16248385]
[1755873762087,3.0,4613.9,4612.6,0.16248385]
[1755873762289,0.66,4613.7,4612.6,0.16248385]
[1755873762611,5.3258944,4613.6,4612.6,0.16248385]
[1755873762765,5.302,4613.6,4612.6,0.16248385]
[1755873762971,0.0238944,4613.5,4612.6,0.16248385]
[1755873763191,0.4725,4613.4,4612.6,0.16248385]
[1755873763496,2.55518944,4613.8,4612.6,0.16248385]
[1755873763497,0.25715642,4613.3,4612.6,0.16248385]
[1755873763693,5.3,4613.2,4612.6,0.16248385]
[1755873763895,0.0238944,4613.1,4612.6,0.16248385]
[1755873764476,0.0238944,4613.1,4610.8,1.02]
[1755873764477,0.4725,4613.0,4610.8,1.02]
[1755873764700,3.66,4612.8,4610.8,1.02]
[1755873765008,2.08263944,4612.7,4610.8,1.02]
[1755873765181,5.3218944,4612.6,4610.8,1.02]
[1755873765497,2.08263944,4612.7,4610.8,1.02]
[1755873765802,3.0,4612.5,4610.8,1.02]
[1755873766005,3.0,4612.3,4610.8,1.02]
[1755873766176,2.1682097,4612.1,4610.8,1.02]
[1755873766376,0.66,4611.9,4610.8,1.02]
[1755873766577,2.82830373,4611.9,4610.8,1.02]
[1755873766777,2.16863546,4611.2,4610.8,1.02]
[1755873767007,2.16877399,4610.9,4610.8,1.02]
[1755873767171,10.95916839,4610.9,4610.8,1.02]
[1755873767375,11.59527399,4610.9,4610.8,1.02]
[1755873767915,9.5353,4610.9,4610.8,1.02]
[1755873768274,4.49577399,4610.9,4610.8,1.02]
[1755873768492,2.82893176,4610.6,4610.3,0.001]
[1755873768713,2.93780919,4610.4,4610.3,0.001]
[1755873769010,1.7758,4610.4,4610.3,0.001]
[1755873769189,6.958,4610.4,4610.3,0.001]
[1755873769773,1.667,4610.4,4610.3,0.001]
[1755873769978,6.958,4610.4,4610.3,0.001]
[1755873770415,1.667,4610.4,4610.3,0.001]
[1755873770611,1.667,4610.4,4610.3,9.66285524]
[1755873770612,1.55763486,4610.4,4610.3,9.66285524]
[1755873770913,5.289,4610.4,4610.3,3.162799]
[1755873771079,5.289,4610.4,4610.3,0.001]
[1755873771494,1.667,4611.2,4610.3,0.001]
[1755873771680,1.6908944,4611.1,4610.3,0.001]
[1755873772014,0.0238944,4611.0,4610.5,0.66]
[1755873772202,0.0238944,4611.0,4610.3,0.001]
[1755873772402,5.286,4610.9,4610.3,0.001]
[1755873772605,0.0238944,4610.8,4610.3,0.001]
[1755873773597,0.66,4610.1,4606.8,0.02]
[1755873773906,12.89325239,4610.4,4606.8,0.02]
[1755873773907,5.82971511,4608.9,4606.8,0.02]
[1755873774109,5.943,4608.9,4607.5,0.16641247]
[1755873774274,1.667,4609.1,4607.5,0.16641247]
[1755873774477,0.0230944,4609.0,4607.5,0.16641247]
[1755873774674,5.7545,4608.9,4607.5,0.16641247]
[1755873774888,6.4145,4608.9,4607.5,0.16641247]
[1755873775290,6.4145,4608.9,4606.8,0.0347]
[1755873775291,6.4145,4608.9,4606.8,0.02]
[1755873775481,11.58421511,4608.9,4606.8,0.02]
[1755873776110,33.0,4608.8,4606.9,0.16679276]
[1755873776313,0.66,4607.1,4606.9,0.16679276]
[1755873776611,11.1750944,4607.1,4606.9,0.16679276]
[1755873776813,14.6245,4607.1,4606.9,0.16679276]
[1755873776984,14.6245,4607.1,4606.8,0.02]
[1755873777180,6.882,4607.1,4605.6,0.0553]
[1755873777381,5.278,4607.0,4605.5,0.15951859]
[1755873777598,1.668,4607.1,4605.7,3.66]
[1755873777800,1.668,4607.1,4605.5,0.31595186]
[1755873777801,5.277,4607.0,4606.4,0.66]
[1755873778036,5.277,4606.9,4606.8,3.66]
[1755873778238,1.668,4608.0,4607.7,0.66]
[1755873778527,6.9670944,4607.9,4607.8,0.0218]
[1755873780403,5.273,4605.8,4604.1,0.0014]
[1755873780938,1.668,4604.2,4602.2,0.001]
[1755873781101,10.6538,4604.1,4602.2,0.001]
[1755873781432,5.3808,4604.1,4602.2,0.001]
[1755873781730,5.7435,4604.0,4602.2,0.001]
[1755873781918,5.271,4603.9,4602.2,0.001]
[1755873782126,5.3808,4604.1,4602.2,0.0572]
[1755873782127,0.0230944,4603.8,4602.2,0.0572]
[1755873782327,5.3808,4604.1,4602.2,0.0572]
[1755873782636,5.2930944,4604.0,4602.2,0.001]
[1755873782837,5.27,4604.0,4602.2,0.001]
[1755873783002,0.0230944,4603.9,4602.2,0.001]
[1755873783202,0.66,4603.8,4602.2,0.001]
[1755873783542,5.2940944,4603.7,4602.2,0.001]
[1755873783839,5.217,4606.1,4602.2,0.001]
[1755873784010,1.38473911,4606.6,4602.2,0.001]
[1755873784011,1.6920944,4605.6,4602.5,12.89325239]
[1755873784210,1.33202668,4605.5,4602.8,0.66]
[1755873784413,10.9815944,4605.4,4602.3,2.17282663]
[1755873784612,11.60845146,4605.4,4602.9,0.001]
[1755873784815,11.60845146,4605.4,4603.1,3.0]
[1755873785125,10.486,4605.4,4602.4,0.21818266]
[1755873785327,5.217,4605.4,4602.2,0.001]
[1755873785561,5.268,4605.3,4602.4,3.0]
[1755873785728,0.6830944,4605.2,4602.2,0.001]
[1755873785928,4.1547944,4605.2,4602.2,0.001]
[1755873786132,5.268,4605.1,4602.2,0.0308]
[1755873786333,0.0230944,4605.0,4602.3,8.154911]
[1755873786645,5.217,4605.4,4602.5,0.66]
[1755873786852,0.0230944,4605.3,4603.1,2.172449]
[1755873787157,5.267,4605.2,4603.2,3.6894]
[1755873787359,0.0230944,4605.1,4603.3,0.39814]
[1755873787528,0.4725,4605.0,4602.2,0.001]
[1755873787725,0.0230944,4604.9,4602.2,0.001]
[1755873787930,0.66,4604.7,4602.2,0.001]
[1755873788235,0.0230944,4604.6,4602.2,0.001]
[1755873788435,1.669,4604.5,4602.2,0.001]
[1755873788651,5.47733,4604.4,4602.2,0.001]
[1755873788862,1.6930944,4604.3,4602.3,2.682335]
[1755873789037,6.935,4604.2,4602.3,0.0291]
[1755873789233,5.2880944,4604.1,4602.4,0.029]
[1755873789457,5.265,4604.1,4602.9,2.17254339]
[1755873789764,1.67,4604.2,4603.3,2.17234531]
[1755873789925,5.2880944,4604.1,4603.4,0.21723453]
[1755873790124,5.2880944,4604.1,4603.1,0.66]
[1755873790125,5.265,4604.1,4603.1,0.66]
[1755873790438,5.265,4604.1,4603.9,0.1088]
[1755873790639,0.0230944,4604.0,4601.7,0.001]
[1755873790829,0.4773944,4604.0,4601.7,0.001]
[1755873791034,0.74123944,4603.9,4601.7,0.001]
[1755873791242,0.6830944,4603.8,4601.7,0.001]
[1755873791458,0.66,4603.6,4601.7,0.001]
[1755873791656,0.1088,4602.3,4601.7,0.001]
[1755873791855,12.2598,4602.3,4601.7,0.001]
[1755873792060,12.151,4602.3,4601.7,0.001]
[1755873793370,6.889,4602.3,4601.7,0.001]
[1755873793574,1.67,4602.3,4602.2,2.17387384]
[1755873793789,2.17086379,4606.5,4602.2,2.17387384]
[1755873793790,1.67,4603.2,4602.3,0.66]
[1755873794066,1.67,4603.4,4603.3,3.0]
[1755873794274,1.67,4603.4,4602.4,0.0075]
[1755873794458,6.929,4603.4,4602.8,0.66]
[1755873794633,1.67,4603.4,4603.3,5.83235461]
[1755873794835,1.67,4603.4,4603.3,6.63283351]
[1755873795039,1.67,4603.8,4603.7,2.83216586]
[1755873795248,0.4543,4607.0,4603.7,3.6675]
[1755873795249,5.22,4605.7,4603.7,3.6675]
[1755873795567,6.9520944,4605.6,4604.2,0.66]
[1755873795863,6.929,4605.6,4604.7,2.83167747]
[1755873796069,0.0230944,4605.5,4604.7,0.66]
[1755873796257,0.0230944,4605.5,4604.3,0.0148]
[1755873796454,0.0230944,4605.5,4603.3,0.8004789]
[1755873796656,1.67,4605.6,4603.5,3.0]
[1755873796859,1.67,4605.6,4604.1,0.66]
[1755873797036,1.67,4605.6,4604.6,0.66]
[1755873797238,1.62105444,4605.6,4605.5,2.8313169]
[1755873797438,1.67,4607.0,4606.7,2.83075129]
[1755873797671,1.67,4607.0,4606.7,5.83075129]
[1755873797843,1.67,4607.0,4606.7,3.66]
[1755873798041,0.0392,4606.8,4605.6,0.50027131]
[1755873798369,0.0392,4606.8,4605.6,0.66]
[1755873798671,0.0230944,4606.7,4605.7,0.66]
[1755873798971,0.0392,4606.8,4606.0,0.66]
[1755873799172,0.0392,4606.8,4606.7,0.66]
[1755873799549,0.0392,4606.8,4606.7,3.66]
[1755873799743,0.0392,4606.8,4606.7,4.48186925]
[1755873799946,0.0392,4606.8,4606.7,4.46016174]
[1755873800191,0.0392,4606.8,4606.7,1.46016174]
[1755873800478,0.0392,4606.8,4606.7,5.83075129]
[1755873800643,1.67,4607.0,4606.9,2.83065705]
[1755873800848,5.25,4608.1,4607.3,0.66]
[1755873801050,5.25,4608.1,4607.4,0.66]
[1755873801383,5.249,4607.7,4607.5,0.02170374]
[1755873801585,1.67,4608.2,4607.7,2.83028018]
[1755873801879,1.67,4608.2,4607.7,6.4133082]
[1755873802079,1.67,4608.2,4607.7,6.5221082]
[1755873802377,5.248,4608.1,4607.7,6.5221082]
[1755873803078,5.248,4608.1,4607.7,4.35182802]
[1755873803265,5.248,4608.1,4607.7,0.26870223]
[1755873803454,5.248,4608.1,4607.7,0.15990223]
[1755873803455,0.1288,4607.8,4607.7,0.15990223]
[1755873803657,0.1518944,4607.8,4606.9,0.1088]
[1755873804072,5.217,4607.7,4606.9,0.1088]
[1755873804375,5.244,4607.6,4607.0,0.66]
[1755873804546,5.244,4607.6,4607.5,0.1088]
[1755873804743,5.263,4607.8,4607.6,0.66]
[1755873804944,0.02,4607.8,4607.7,3.66]
[1755873805179,5.262,4607.8,4606.1,0.66]
[1755873805380,5.262,4607.8,4607.4,2.17037588]
[1755873805596,5.262,4607.8,4606.2,3.58310983]
[1755873805805,5.262,4607.8,4607.7,2.83028018]
[1755873805806,0.02,4607.8,4607.7,2.83028018]
[1755873805969,0.02,4607.8,4607.7,12.27243818]
[1755873806301,0.04,4611.8,4608.7,2.82980927]
[1755873806590,0.466,4610.2,4609.7,0.66]
[1755873806789,0.0230944,4610.1,4608.7,0.28298093]
[1755873806994,0.466,4610.2,4609.0,0.66]
[1755873807196,0.0230944,4610.1,4608.2,3.0]
[1755873807402,0.0230944,4610.1,4607.5,2.83033164]
[1755873807561,0.0230944,4609.7,4608.0,2.17013888]
[1755873807761,0.0230944,4609.7,4608.1,0.66]
[1755873807961,5.238,4609.6,4608.2,5.292746]
[1755873808185,5.238,4609.6,4608.3,0.66]
[1755873808491,5.2600944,4609.5,4607.6,3.0]
[1755873808661,2.1233,4610.3,4608.2,2.83003142]
[1755873808864,2.1233,4610.3,4608.3,2.08289597]
[1755873808865,1.669,4610.3,4608.3,2.08289597]
[1755873809095,1.669,4610.3,4609.7,5.82933856]
[1755873809269,1.689,4610.8,4609.7,8.04738556]
[1755873809784,6.924,4610.8,4609.7,8.04738556]
[1755873810099,1.689,4610.8,4610.7,2.82886806]
[1755873810394,0.0192,4610.8,4610.7,10.85476406]
[1755873810563,1.709,4611.8,4611.7,2.82839777]
[1755873810564,0.04,4611.8,4611.7,2.82839777]
[1755873810764,0.04,4611.8,4611.7,9.352815]
[1755873810984,0.04,4611.8,4611.7,8.623803]
[1755873811194,0.04,4611.8,4611.7,5.93464342]
[1755873811368,0.04,4611.8,4611.7,3.0]
[1755873811369,1.709,4611.8,4611.7,3.0]
[1755873811571,1.709,4611.8,4611.0,0.66]
[1755873811783,5.2540944,4611.7,4609.3,2.16949891]
[1755873812060,1.709,4611.8,4610.8,0.10646203]
[1755873812301,1.709,4611.8,4611.7,2.82839777]
[1755873812666,1.709,4611.8,4611.7,0.66]
[1755873813186,1.709,4611.8,4611.7,2.82839777]
[1755873813569,1.709,4611.8,4611.7,0.66]
[1755873813765,1.709,4611.8,4611.7,5.82839777]
[1755873814066,1.709,4611.8,4611.7,5.9946424]
[1755873814268,0.04,4611.8,4611.7,8.69386764]
[1755873814600,1.688,4612.8,4612.3,2.16811569]
[1755873814767,0.02,4613.8,4612.7,2.16792767]
[1755873815093,0.02,4613.8,4613.7,2.16745778]
[1755873815299,1.668,4614.9,4614.7,2.1669881]
[1755873815701,1.688,4615.8,4614.7,2.7401881]
[1755873815903,0.0230944,4615.7,4614.7,2.2749881]
[1755873816102,0.022,4614.8,4614.7,0.27042618]
[1755873816305,0.022,4614.8,4614.7,8.12202328]
[1755873816505,0.022,4614.8,4614.7,10.46437237]
[1755873816816,0.022,4614.8,4614.7,7.48352337]
[1755873816964,0.022,4614.8,4614.7,13.95736828]
[1755873817164,0.02,4615.8,4615.7,5.82651862]
[1755873817364,0.02,4615.8,4615.7,3.66]
[1755873817865,0.02,4615.8,4615.7,5.82651862]
[1755873818069,0.02,4615.8,4615.7,6.62583025]
[1755873818270,1.668,4616.7,4615.8,3.0]
[1755873818567,1.668,4616.7,4616.3,3.0]
[1755873818767,1.668,4616.7,4615.8,2.16643512]
[1755873818768,1.668,4616.7,4615.8,3.66]
[1755873818972,1.668,4616.7,4616.0,3.66]
[1755873819271,1.668,4616.7,4616.1,0.0216633]
[1755873819518,1.668,4616.7,4616.2,0.02166283]
[1755873820075,0.04,4616.8,4616.7,5.82604934]
[1755873820295,0.04,4616.8,4616.7,3.0]
[1755873820831,0.04,4616.8,4616.2,0.10668156]
[1755873821130,0.0230944,4616.7,4614.7,0.16242618]
[1755873821292,0.0230944,4616.7,4614.7,0.2329549]
[1755873821496,1.666,4616.6,4614.8,2.485728]
[1755873821815,0.0230944,4616.5,4614.8,0.10948982]
[1755873822015,5.209,4616.4,4614.6,0.60710378]
[1755873822218,0.0230944,4616.3,4614.6,0.71356932]
[1755873822440,0.0222944,4616.3,4614.9,0.66]
[1755873822594,5.206,4616.2,4615.1,0.66]
[1755873822806,1.666,4616.6,4614.6,2.88059319]
[1755873823120,0.4835944,4616.5,4614.7,2.1669881]
[1755873823332,0.4835944,4616.5,4614.7,2.16694537]
[1755873823546,0.4835944,4616.5,4614.6,0.10646554]
[1755873823852,0.4835944,4616.5,4613.8,0.4436]
[1755873823853,0.73545944,4616.4,4614.7,0.02166988]
[1755873824049,0.0222944,4616.3,4615.8,0.02]
[1755873824208,0.4613,4616.2,4615.8,0.02]
[1755873824415,0.0222944,4616.1,4615.8,0.02]
[1755873824614,0.4613,4616.0,4615.8,0.02]
[1755873824838,0.4835944,4615.9,4615.8,0.02]
[1755873825440,1.1435944,4615.9,4615.8,0.02]
[1755873825640,1.25795384,4615.9,4615.8,0.02]
[1755873825809,0.57565944,4615.9,4615.8,0.02]
[1755873826015,0.4613,4615.9,4615.8,0.02]
[1755873826715,8.6603,4615.9,4615.8,0.02]
[1755873826917,8.7683,4615.9,4615.8,0.02]
[1755873827112,0.108,4615.9,4615.8,0.02]
[1755873827358,5.306,4615.9,4615.8,0.02]
[1755873827525,6.1899,4615.9,4615.8,0.02]
[1755873828037,9.1899,4615.9,4615.8,0.02]
[1755873828208,1.666,4616.6,4615.8,0.02]
[1755873828417,5.2172944,4616.5,4615.8,0.02]
[1755873828618,5.195,4616.5,4615.8,0.02]
[1755873828913,5.195,4616.5,4615.2,2.16674888]
[1755873828914,0.0222944,4616.4,4615.2,2.16674888]
[1755873829164,5.195,4616.5,4614.9,3.0]
[1755873829460,0.0222944,4616.4,4614.8,0.02]
[1755873829760,0.4613,4616.3,4614.8,0.02]
[1755873829925,0.6822944,4616.2,4614.8,0.02]
[1755873830317,3.0,4616.0,4614.8,0.02]
[1755873830651,0.4613,4616.1,4614.8,0.02]
[1755873830855,8.2142944,4616.0,4614.8,0.02]
[1755873831168,9.05955944,4616.0,4614.8,0.02]
[1755873831513,3.4613,4615.9,4614.8,0.02]
[1755873831717,0.0222944,4615.8,4614.8,0.02]
[1755873832065,3.0,4615.6,4614.8,0.02]
[1755873832348,1.6882944,4615.5,4614.8,0.02]
[1755873832522,0.25489202,4615.4,4614.8,0.02]
[1755873832724,1.6882944,4615.5,4614.8,0.02]
[1755873832725,5.2092944,4615.3,4614.8,0.02]
[1755873832931,0.0222944,4615.2,4614.8,0.02]
[1755873833260,5.187,4615.1,4614.8,0.02]
[1755873833624,5.187,4615.1,4614.9,0.46526894]
[1755873833839,5.185,4615.0,4614.9,2.84855526]
[1755873834034,5.185,4615.0,4614.9,2.82688632]
[1755873834219,5.185,4615.0,4614.8,0.02]
[1755873834555,0.0222944,4614.9,4614.8,0.02]
[1755873834759,0.0214944,4614.9,4614.8,0.02]
[1755873834960,5.2044944,4614.9,4614.8,0.02]
[1755873835264,5.183,4614.9,4614.8,0.02]
[1755873835959,5.6443,4614.9,4614.8,0.02]
[1755873836146,6.24825146,4614.9,4614.8,0.02]
[1755873836859,5.18,4614.9,4614.8,0.02]
[1755873837426,5.288,4614.9,4614.8,0.02]
[1755873837624,5.7493,4614.9,4614.8,0.02]
[1755873838127,8.7493,4614.9,4614.8,0.02]
[1755873839373,3.0,4614.9,4614.8,0.02]
[1755873839556,8.3054944,4614.9,4614.8,0.02]
[1755873839878,8.7453,4614.9,4614.8,0.02]
[1755873840368,0.108,4614.9,4614.8,0.02]
[1755873840666,5.173,4614.9,4614.8,0.5716]
[1755873840840,5.173,4614.9,4614.8,0.02]
[1755873841030,1.666,4615.5,4614.8,0.02]
[1755873841234,5.1934944,4615.4,4614.8,0.02]
[1755873841561,3.0,4615.3,4614.8,0.02]
[1755873841870,0.66,4615.1,4614.8,0.02]
[1755873842042,0.0214944,4615.0,4614.8,0.02]
[1755873842245,0.4613,4614.9,4614.8,0.02]
[1755873842448,0.62210272,4614.9,4614.8,0.02]
[1755873842836,6.834,4614.9,4614.8,0.02]
[1755873843152,10.76046738,4614.9,4614.8,0.02]
[1755873843349,11.42046738,4614.9,4614.8,0.02]
[1755873843738,11.42046738,4614.9,4613.8,0.18156977]
[1755873843938,0.48672862,4614.8,4613.8,0.18156977]
[1755873844159,0.4613,4614.7,4613.8,0.18156977]
[1755873844359,0.0214944,4614.6,4613.8,0.18156977]
[1755873844968,0.0214944,4614.6,4613.8,0.021]
[1755873844969,0.66,4614.4,4613.8,0.021]
[1755873845160,3.66,4614.2,4613.8,0.021]
[1755873845371,5.82736383,4613.9,4613.8,0.021]
[1755873845571,5.82736383,4613.9,4612.8,0.02]
[1755873845572,0.66,4613.7,4612.8,0.02]
[1755873845770,0.66,4613.0,4612.2,0.1606906]
[1755873845971,0.66,4613.0,4611.2,0.001]
[1755873845972,2.16807945,4612.4,4611.2,0.001]
[1755873846184,5.6457944,4612.9,4611.2,0.001]
[1755873846185,0.66,4612.1,4611.2,0.001]
[1755873846386,3.0214944,4612.0,4611.2,0.001]
[1755873846680,5.82839777,4611.7,4611.2,0.001]
[1755873846883,8.8212,4611.7,4611.2,0.001]
[1755873847068,8.1612,4611.7,4611.2,0.001]
[1755873847651,0.36814944,4611.9,4611.2,0.001]
[1755873847652,0.66,4611.8,4611.2,0.001]
[1755873847855,5.8414944,4611.7,4611.2,0.001]
[1755873848051,0.58414944,4611.7,4611.2,0.001]
[1755873848283,0.0214944,4612.2,4611.2,0.001]
[1755873848452,5.159,4612.1,4611.2,0.001]
[1755873848653,0.6814944,4612.0,4611.2,0.001]
[1755873849018,0.0214944,4612.0,4611.2,0.001]
[1755873849551,5.157,4611.9,4611.2,0.001]
[1755873849851,0.0214944,4611.8,4611.2,0.001]
[1755873850284,5.156,4611.7,4611.2,0.001]
[1755873850716,5.156,4611.7,4611.2,2.16959571]
[1755873850915,5.155,4611.7,4611.6,0.1098]
[1755873851082,6.876,4612.3,4611.6,0.1098]
[1755873851289,5.154,4612.2,4612.1,0.1088]
[1755873851597,1.667,4612.3,4611.7,0.02168397]
[1755873851598,1.667,4612.3,4612.2,2.82816269]
[1755873851925,1.192,4612.3,4612.2,3.11097896]
[1755873852218,0.86609655,4612.3,4612.2,3.58017896]
[1755873852405,0.86609655,4612.3,4612.1,0.1088]
[1755873852725,0.88759095,4612.3,4612.0,0.1088]
[1755873853019,0.86609655,4612.3,4612.2,0.578]
[1755873853406,5.15,4612.5,4612.2,0.578]
[1755873853722,0.77473821,4616.3,4612.2,0.578]
[1755873853723,5.149,4612.6,4612.4,0.66]
[1755873854018,4.82309655,4612.5,4612.4,0.7838]
[1755873854221,5.149,4612.5,4612.1,0.1088]
[1755873854386,5.149,4612.5,4612.4,0.1088]
[1755873854786,5.149,4612.5,4611.6,0.001]
[1755873855027,5.149,4612.5,4611.7,0.1088]
[1755873855028,0.1302944,4612.4,4611.7,0.1088]
[1755873855502,0.1088,4611.8,4611.6,0.001]
[1755873855686,6.8334944,4611.7,4611.6,0.001]
[1755873855891,10.50622944,4611.7,4611.6,0.001]
[1755873856130,9.812,4611.7,4611.6,0.001]
[1755873856326,6.812,4611.7,4611.6,0.001]
[1755873856623,6.81,4611.7,4611.6,0.001]
[1755873858302,9.81,4611.7,4611.6,0.001]
[1755873859121,9.8042,4611.7,4611.6,0.001]
[1755873859717,4.6662,4611.7,4611.6,0.001]
[1755873859889,9.8032,4611.7,4611.6,0.001]
[1755873860093,10.4632,4611.7,4611.6,0.001]
[1755873860520,9.8032,4611.7,4611.6,0.001]
[1755873861628,10.4632,4611.7,4611.6,0.001]